[Event "*** Titled Tuesday Blitz"]
[Site "Chess.com"]
[Date "2020.11.03"]
[Round "6"]
[White "Zq1"]
[Black "Karacsonyi_Gellert"]
[Result "1/2-1/2"]
[WhiteElo "2514"]
[BlackElo "2664"]
[TimeControl "180+1"]
[EndTime "11:11:40 PST"]
[Termination "Game drawn by repetition"]

1. d4 {[%clk 0:03:00.9]} 1... Nf6 {[%clk 0:02:59.6]} 2. c4 {[%clk 0:03:00.9]}
2... e6 {[%clk 0:03:00.1]} 3. Nc3 {[%clk 0:03:00.3]} 3... Bb4 {[%clk 0:03:00.3]}
4. e3 {[%clk 0:02:59.9]} 4... O-O {[%clk 0:03:00.5]} 5. Bd3 {[%clk 0:02:59.7]}
5... c5 {[%clk 0:03:00.8]} 6. Ne2 {[%clk 0:02:58.3]} 6... d5 {[%clk 0:02:59.7]}
7. cxd5 {[%clk 0:02:57.6]} 7... cxd4 {[%clk 0:02:56.7]} 8. exd4 {[%clk
0:02:57.7]} 8... exd5 {[%clk 0:02:55]} 9. O-O {[%clk 0:02:57.3]} 9... Nc6 {[%clk
0:02:54.9]} 10. Bc2 {[%clk 0:02:57.1]} 10... Bg4 {[%clk 0:02:53.4]} 11. f3
{[%clk 0:02:55.4]} 11... Bh5 {[%clk 0:02:53]} 12. a3 {[%clk 0:02:52.8]} 12...
Ba5 {[%clk 0:02:52]} 13. Nf4 {[%clk 0:02:46.6]} 13... Bg6 {[%clk 0:02:51.4]} 14.
Nxg6 {[%clk 0:02:46.5]} 14... hxg6 {[%clk 0:02:51.4]} 15. Be3 {[%clk 0:02:45.3]}
15... Re8 {[%clk 0:02:50.9]} 16. Bf2 {[%clk 0:02:45.1]} 16... Bxc3 {[%clk
0:02:46.8]} 17. bxc3 {[%clk 0:02:44.3]} 17... Rc8 {[%clk 0:02:47.7]} 18. Rb1
{[%clk 0:02:41.7]} 18... Na5 {[%clk 0:02:47.5]} 19. Qd3 {[%clk 0:02:38.2]} 19...
b6 {[%clk 0:02:47.1]} 20. Ba4 {[%clk 0:02:29.2]} 20... Re7 {[%clk 0:02:45.8]}
21. Bb5 {[%clk 0:02:29.1]} 21... Qc7 {[%clk 0:02:27.7]} 22. Rfc1 {[%clk
0:02:22.8]} 22... Nc4 {[%clk 0:02:19.2]} 23. Ba6 {[%clk 0:02:15.6]} 23... Rce8
{[%clk 0:02:19.2]} 24. a4 {[%clk 0:02:09.8]} 24... Nh5 {[%clk 0:02:07.1]} 25. g3
{[%clk 0:02:05.6]} 25... Re2 {[%clk 0:01:09.3]} 26. Re1 {[%clk 0:02:04.1]} 26...
Rxe1+ {[%clk 0:01:01.3]} 27. Rxe1 {[%clk 0:02:03.1]} 27... Rxe1+ {[%clk
0:01:01.5]} 28. Bxe1 {[%clk 0:02:02.8]} 28... Qe7 {[%clk 0:01:02.2]} 29. Bf2
{[%clk 0:01:51.7]} 29... Nd6 {[%clk 0:01:02.7]} 30. c4 {[%clk 0:01:41.8]} 30...
dxc4 {[%clk 0:01:00]} 31. Bxc4 {[%clk 0:01:41.2]} 31... Qc7 {[%clk 0:00:59.6]}
32. Bd5 {[%clk 0:01:39.9]} 32... Nf6 {[%clk 0:00:58.9]} 33. Bb3 {[%clk
0:01:39.8]} 33... Qc1+ {[%clk 0:00:58.6]} 34. Kg2 {[%clk 0:01:39.1]} 34... Nf5
{[%clk 0:00:56.4]} 35. g4 {[%clk 0:01:35.5]} 35... Ne7 {[%clk 0:00:53.8]} 36. d5
{[%clk 0:01:34.9]} 36... Qc7 {[%clk 0:00:39.7]} 37. d6 {[%clk 0:01:32.9]} 37...
Qd7 {[%clk 0:00:40.2]} 38. Bg3 {[%clk 0:01:23.5]} 38... g5 {[%clk 0:00:38.7]}
39. Qc4 {[%clk 0:01:10.7]} 39... Ned5 {[%clk 0:00:31.2]} 40. Qd4 {[%clk
0:01:01]} 40... Ne7 {[%clk 0:00:22.4]} 41. Qe5 {[%clk 0:00:50.2]} 41... Nc6
{[%clk 0:00:19.6]} 42. Qxg5 {[%clk 0:00:46.5]} 42... Nd4 {[%clk 0:00:20.1]} 43.
Qe3 {[%clk 0:00:40]} 43... Nxb3 {[%clk 0:00:17.3]} 44. Qxb3 {[%clk 0:00:40]}
44... Kf8 {[%clk 0:00:16.4]} 45. h4 {[%clk 0:00:35.1]} 45... Ne8 {[%clk
0:00:16.7]} 46. Qb4 {[%clk 0:00:33.1]} 46... f6 {[%clk 0:00:13.3]} 47. h5 {[%clk
0:00:32.6]} 47... Kf7 {[%clk 0:00:13.6]} 48. Qc4+ {[%clk 0:00:31.8]} 48... Qe6
{[%clk 0:00:11.4]} 49. Qd3 {[%clk 0:00:31.8]} 49... Qd7 {[%clk 0:00:11]} 50.
Qg6+ {[%clk 0:00:24.8]} 50... Kf8 {[%clk 0:00:11.1]} 51. h6 {[%clk 0:00:24.6]}
51... gxh6 {[%clk 0:00:09.9]} 52. Qxh6+ {[%clk 0:00:24.6]} 52... Kg8 {[%clk
0:00:02.6]} 53. Qg6+ {[%clk 0:00:24.5]} 53... Ng7 {[%clk 0:00:03.1]} 54. Bf4
{[%clk 0:00:20.5]} 54... Qxa4 {[%clk 0:00:03.2]} 55. Qxf6 {[%clk 0:00:18.4]}
55... Qc2+ {[%clk 0:00:02.4]} 56. Kg3 {[%clk 0:00:17.6]} 56... Qd1 {[%clk
0:00:02.8]} 57. Be5 {[%clk 0:00:14.9]} 57... Qg1+ {[%clk 0:00:03.2]} 58. Kf4
{[%clk 0:00:13.3]} 58... Qh2+ {[%clk 0:00:03.6]} 59. Ke4 {[%clk 0:00:12.7]}
59... Qe2+ {[%clk 0:00:04.1]} 60. Kd5 {[%clk 0:00:12.9]} 60... Qb5+ {[%clk
0:00:04.2]} 61. Ke4 {[%clk 0:00:13.1]} 61... Qe2+ {[%clk 0:00:04.1]} 62. Kf4
{[%clk 0:00:13.3]} 62... Qh2+ {[%clk 0:00:03.7]} 63. Ke3 {[%clk 0:00:13.9]}
63... Qg1+ {[%clk 0:00:03.5]} 64. Kd3 {[%clk 0:00:14]} 64... Qd1+ {[%clk
0:00:03.5]} 65. Kc4 {[%clk 0:00:14.3]} 65... Qa4+ {[%clk 0:00:03.4]} 66. Kd3
{[%clk 0:00:12.1]} 66... Qd1+ {[%clk 0:00:03.3]} 67. Ke3 {[%clk 0:00:11.7]}
67... Qe1+ {[%clk 0:00:03.3]} 68. Kd4 {[%clk 0:00:10.8]} 68... Qb4+ {[%clk
0:00:03.1]} 69. Kd5 {[%clk 0:00:08.8]} 69... Qb5+ {[%clk 0:00:02.7]} 70. Ke4
{[%clk 0:00:08.8]} 70... Qe2+ {[%clk 0:00:03.1]} 1/2-1/2

[Event "*** Titled Tuesday Blitz"]
[Site "Chess.com"]
[Date "2020.11.03"]
[Round "6"]
[White "TokChess"]
[Black "Rakhimzhan_Alen"]
[Result "0-1"]
[WhiteElo "2465"]
[BlackElo "2623"]
[TimeControl "180+1"]
[EndTime "11:11:43 PST"]
[Termination "Rakhimzhan_Alen won by resignation"]

1. c4 {[%clk 0:03:00.9]} 1... e5 {[%clk 0:02:52.1]} 2. g3 {[%clk 0:03:00.2]}
2... Nc6 {[%clk 0:02:49.5]} 3. Bg2 {[%clk 0:03:00.4]} 3... Bc5 {[%clk
0:02:47.3]} 4. Nc3 {[%clk 0:03:00.6]} 4... Nf6 {[%clk 0:02:47.3]} 5. e3 {[%clk
0:03:01]} 5... d6 {[%clk 0:02:45.5]} 6. Nge2 {[%clk 0:03:01.2]} 6... O-O {[%clk
0:02:45.6]} 7. O-O {[%clk 0:03:01.3]} 7... a5 {[%clk 0:02:45.4]} 8. d3 {[%clk
0:02:57.7]} 8... Ba7 {[%clk 0:02:37.7]} 9. h3 {[%clk 0:02:57.4]} 9... Be6 {[%clk
0:02:34]} 10. Kh2 {[%clk 0:02:57]} 10... d5 {[%clk 0:02:29.1]} 11. cxd5 {[%clk
0:02:51.8]} 11... Nxd5 {[%clk 0:02:29.6]} 12. a3 {[%clk 0:02:43.5]} 12... Qd7
{[%clk 0:02:25.7]} 13. Qc2 {[%clk 0:02:42.1]} 13... Rad8 {[%clk 0:02:18.2]} 14.
Rd1 {[%clk 0:02:36.5]} 14... f5 {[%clk 0:02:11]} 15. Na4 {[%clk 0:02:22.9]}
15... Qe7 {[%clk 0:02:10.7]} 16. d4 {[%clk 0:02:13.9]} 16... e4 {[%clk
0:01:53.5]} 17. Nc5 {[%clk 0:02:10.8]} 17... Bc8 {[%clk 0:01:53.6]} 18. b4
{[%clk 0:02:02.6]} 18... axb4 {[%clk 0:01:49.9]} 19. axb4 {[%clk 0:02:03.1]}
19... Ncxb4 {[%clk 0:01:48.1]} 20. Qb3 {[%clk 0:01:55.2]} 20... Bxc5 {[%clk
0:01:48.4]} 21. dxc5 {[%clk 0:01:55.3]} 21... Nd3 {[%clk 0:01:48.5]} 22. Rxd3
{[%clk 0:01:50.8]} 22... exd3 {[%clk 0:01:46.2]} 23. Bxd5+ {[%clk 0:01:51]}
23... Kh8 {[%clk 0:01:35.3]} 24. Nf4 {[%clk 0:01:20.7]} 24... c6 {[%clk
0:01:35.3]} 25. Bf3 {[%clk 0:01:07.8]} 25... Qxc5 {[%clk 0:01:04.6]} 26. Ba3
{[%clk 0:00:47.3]} 26... Qa5 {[%clk 0:01:03.5]} 27. Bb2 {[%clk 0:00:43.1]} 27...
Qb5 {[%clk 0:00:49.9]} 28. Qxb5 {[%clk 0:00:42.1]} 28... cxb5 {[%clk 0:00:46.9]}
29. Rd1 {[%clk 0:00:42.6]} 29... d2 {[%clk 0:00:42.2]} 30. Bc3 {[%clk
0:00:40.1]} 30... Rfe8 {[%clk 0:00:33.7]} 31. Kg2 {[%clk 0:00:36.6]} 31... Bd7
{[%clk 0:00:24.5]} 32. Bxb7 {[%clk 0:00:30.6]} 32... b4 {[%clk 0:00:17.9]} 33.
Bxd2 {[%clk 0:00:28.4]} 33... Ba4 {[%clk 0:00:17.6]} 34. Ra1 {[%clk 0:00:27]}
34... Rxd2 {[%clk 0:00:13.4]} 35. Rxa4 {[%clk 0:00:26]} 35... Rb8 {[%clk
0:00:13.6]} 36. Bd5 {[%clk 0:00:20.9]} 36... g6 {[%clk 0:00:10.5]} 37. Ra2
{[%clk 0:00:14.3]} 37... Rxa2 {[%clk 0:00:09.7]} 38. Bxa2 {[%clk 0:00:14.9]}
38... b3 {[%clk 0:00:10.4]} 39. Bb1 {[%clk 0:00:14.8]} 39... Rc8 {[%clk
0:00:09.9]} 40. Nd3 {[%clk 0:00:13.1]} 40... b2 {[%clk 0:00:09.2]} 41. Kf3
{[%clk 0:00:09.4]} 41... Rc1 {[%clk 0:00:08.3]} 42. Ba2 {[%clk 0:00:09.8]} 42...
b1=Q {[%clk 0:00:07.6]} 43. Bxb1 {[%clk 0:00:09.6]} 43... Rxb1 {[%clk
0:00:08.5]} 44. h4 {[%clk 0:00:10.3]} 44... Kg7 {[%clk 0:00:08.6]} 45. Nf4
{[%clk 0:00:10.9]} 45... Kf6 {[%clk 0:00:08.7]} 46. Ne2 {[%clk 0:00:11.4]} 46...
Ke5 {[%clk 0:00:08.4]} 47. Nd4 {[%clk 0:00:11.8]} 47... Ra1 {[%clk 0:00:08.1]}
48. Nc6+ {[%clk 0:00:12.1]} 48... Kd5 {[%clk 0:00:07.9]} 49. Nd4 {[%clk
0:00:12.8]} 49... Ra2 {[%clk 0:00:07.5]} 50. Ne2 {[%clk 0:00:13.1]} 50... Kc4
{[%clk 0:00:07]} 51. Nf4 {[%clk 0:00:12.5]} 51... Kc3 {[%clk 0:00:06.8]} 52. Ne6
{[%clk 0:00:12.7]} 52... Ra6 {[%clk 0:00:06.1]} 53. Ng5 {[%clk 0:00:12.6]} 53...
Ra7 {[%clk 0:00:06.3]} 54. Kf4 {[%clk 0:00:12.3]} 54... h6 {[%clk 0:00:06.2]}
55. Ne6 {[%clk 0:00:11]} 55... Ra4+ {[%clk 0:00:06.5]} 56. Nd4 {[%clk 0:00:11]}
56... Kd3 {[%clk 0:00:05.4]} 57. h5 {[%clk 0:00:10.3]} 57... gxh5 {[%clk
0:00:05]} 58. Kxf5 {[%clk 0:00:10.3]} 58... Kd2 {[%clk 0:00:04.7]} 59. Kg6
{[%clk 0:00:10.4]} 59... Ke1 {[%clk 0:00:05.2]} 60. Kxh5 {[%clk 0:00:10.6]}
60... Kxf2 {[%clk 0:00:05.6]} 61. Nf5 {[%clk 0:00:10.2]} 61... Kf3 {[%clk
0:00:05.4]} 62. Kxh6 {[%clk 0:00:09.5]} 62... Kg4 {[%clk 0:00:06]} 63. e4 {[%clk
0:00:04.2]} 63... Rxe4 {[%clk 0:00:05.5]} 64. Kg6 {[%clk 0:00:03.9]} 64... Re6+
{[%clk 0:00:05.2]} 65. Kf7 {[%clk 0:00:04.3]} 65... Kxf5 {[%clk 0:00:05.8]} 0-1

[Event "*** Titled Tuesday Blitz"]
[Site "Chess.com"]
[Date "2020.11.03"]
[Round "6"]
[White "Keures"]
[Black "Manukyan_Artak"]
[Result "1/2-1/2"]
[WhiteElo "2313"]
[BlackElo "2429"]
[TimeControl "180+1"]
[EndTime "11:11:43 PST"]
[Termination "Game drawn - insufficient material"]

1. d4 {[%clk 0:03:00.9]} 1... Nf6 {[%clk 0:02:56]} 2. c4 {[%clk 0:03:00.8]} 2...
d6 {[%clk 0:02:55.9]} 3. Nc3 {[%clk 0:03:00.2]} 3... g6 {[%clk 0:02:56]} 4. e4
{[%clk 0:03:00.4]} 4... Bg7 {[%clk 0:02:56.4]} 5. Nf3 {[%clk 0:03:01]} 5... O-O
{[%clk 0:02:56.6]} 6. h3 {[%clk 0:03:01.6]} 6... e5 {[%clk 0:02:55.8]} 7. d5
{[%clk 0:03:01.6]} 7... c5 {[%clk 0:02:55.6]} 8. g4 {[%clk 0:02:59.9]} 8... Na6
{[%clk 0:02:54.4]} 9. Be2 {[%clk 0:02:56]} 9... Nc7 {[%clk 0:02:51.8]} 10. Be3
{[%clk 0:02:55.4]} 10... a6 {[%clk 0:02:49.1]} 11. Nd2 {[%clk 0:02:51.9]} 11...
Rb8 {[%clk 0:02:47.2]} 12. a4 {[%clk 0:02:50.9]} 12... Bd7 {[%clk 0:02:46.3]}
13. Qb3 {[%clk 0:02:48.4]} 13... Nfe8 {[%clk 0:02:41.5]} 14. f3 {[%clk
0:02:41.4]} 14... b5 {[%clk 0:02:38.1]} 15. axb5 {[%clk 0:02:37.8]} 15... axb5
{[%clk 0:02:39]} 16. Nxb5 {[%clk 0:02:37]} 16... Nxb5 {[%clk 0:02:39]} 17. cxb5
{[%clk 0:02:36.7]} 17... Bxb5 {[%clk 0:02:00.1]} 18. Bxb5 {[%clk 0:02:34.9]}
18... Nc7 {[%clk 0:02:00.2]} 19. Qd3 {[%clk 0:01:51.3]} 19... Nxb5 {[%clk
0:01:58]} 20. O-O {[%clk 0:01:51.2]} 20... Nd4 {[%clk 0:01:44.2]} 21. Ra2 {[%clk
0:01:45.9]} 21... Qh4 {[%clk 0:01:27.4]} 22. Kg2 {[%clk 0:01:40.5]} 22... Rb4
{[%clk 0:01:24.4]} 23. Rf2 {[%clk 0:01:32.7]} 23... Rfb8 {[%clk 0:01:09]} 24.
Nf1 {[%clk 0:01:25]} 24... Bh6 {[%clk 0:01:02.2]} 25. Bxh6 {[%clk 0:01:22.6]}
25... Qxh6 {[%clk 0:00:59.6]} 26. Ng3 {[%clk 0:01:17.6]} 26... Qc1 {[%clk
0:00:56.7]} 27. Ne2 {[%clk 0:01:08.1]} 27... Qe1 {[%clk 0:00:40.4]} 28. Nxd4
{[%clk 0:00:59.9]} 28... Rxd4 {[%clk 0:00:37.7]} 29. Qe2 {[%clk 0:00:53.9]}
29... Qb1 {[%clk 0:00:35.9]} 30. Ra6 {[%clk 0:00:52]} 30... Rd1 {[%clk
0:00:31.6]} 31. f4 {[%clk 0:00:30.6]} 31... Rg1+ {[%clk 0:00:16]} 32. Kf3 {[%clk
0:00:30.5]} 32... Rh1 {[%clk 0:00:14.7]} 33. fxe5 {[%clk 0:00:22]} 33... Rxh3+
{[%clk 0:00:14.6]} 34. Kf4 {[%clk 0:00:21.2]} 34... dxe5+ {[%clk 0:00:13.2]} 35.
Kxe5 {[%clk 0:00:20.4]} 35... Re8+ {[%clk 0:00:12.2]} 36. Kd6 {[%clk 0:00:19.2]}
36... Rxe4 {[%clk 0:00:11.4]} 37. Qf1 {[%clk 0:00:16.9]} 37... Qxf1 {[%clk
0:00:08.6]} 38. Rxf1 {[%clk 0:00:17.2]} 38... Rd3 {[%clk 0:00:07.8]} 39. Kxc5
{[%clk 0:00:16.8]} 39... Re5 {[%clk 0:00:07.8]} 40. Rd6 {[%clk 0:00:16.6]} 40...
h5 {[%clk 0:00:07]} 41. gxh5 {[%clk 0:00:16.4]} 41... gxh5 {[%clk 0:00:07.3]}
42. Rg1+ {[%clk 0:00:15.4]} 42... Kf8 {[%clk 0:00:07]} 43. b4 {[%clk 0:00:15.7]}
43... h4 {[%clk 0:00:06.6]} 44. b5 {[%clk 0:00:16.3]} 44... h3 {[%clk
0:00:06.9]} 45. b6 {[%clk 0:00:16.6]} 45... h2 {[%clk 0:00:07]} 46. Rh1 {[%clk
0:00:17.1]} 46... Re2 {[%clk 0:00:06.9]} 47. Rh6 {[%clk 0:00:16]} 47... Rc3+
{[%clk 0:00:05.3]} 48. Kd6 {[%clk 0:00:14.9]} 48... Rb3 {[%clk 0:00:05.4]} 49.
R1xh2 {[%clk 0:00:14.2]} 49... Rxb6+ {[%clk 0:00:04.9]} 50. Kc5 {[%clk
0:00:14.7]} 50... Rxh6 {[%clk 0:00:04.4]} 51. Rxh6 {[%clk 0:00:15.6]} 51... Ke7
{[%clk 0:00:03.7]} 52. Ra6 {[%clk 0:00:14.4]} 52... Rc2+ {[%clk 0:00:03.3]} 53.
Kd4 {[%clk 0:00:14.7]} 53... Rd2+ {[%clk 0:00:03.4]} 54. Ke5 {[%clk 0:00:15.4]}
54... Re2+ {[%clk 0:00:03.7]} 55. Kd4 {[%clk 0:00:15.3]} 55... Rd2+ {[%clk
0:00:04]} 56. Ke4 {[%clk 0:00:15.9]} 56... Re2+ {[%clk 0:00:04.3]} 57. Kd3
{[%clk 0:00:16.6]} 57... Re1 {[%clk 0:00:04.2]} 58. Kd4 {[%clk 0:00:15.4]} 58...
Rd1+ {[%clk 0:00:04]} 59. Kc5 {[%clk 0:00:15.3]} 59... Rc1+ {[%clk 0:00:04.3]}
60. Kd4 {[%clk 0:00:15.9]} 60... Rd1+ {[%clk 0:00:04.7]} 61. Ke5 {[%clk
0:00:16.5]} 61... Re1+ {[%clk 0:00:05]} 62. Kf5 {[%clk 0:00:17.2]} 62... Rd1
{[%clk 0:00:05.2]} 63. Ra7+ {[%clk 0:00:15.7]} 63... Kd6 {[%clk 0:00:04.6]} 64.
Ke4 {[%clk 0:00:14.8]} 64... Re1+ {[%clk 0:00:04.8]} 65. Kf5 {[%clk 0:00:13.8]}
65... Rd1 {[%clk 0:00:03.8]} 66. Rxf7 {[%clk 0:00:12.5]} 66... Rxd5+ {[%clk
0:00:03.8]} 67. Kf4 {[%clk 0:00:12.2]} 67... Re5 {[%clk 0:00:03.6]} 68. Rf6+
{[%clk 0:00:10.8]} 68... Re6 {[%clk 0:00:03.9]} 69. Rxe6+ {[%clk 0:00:11.2]}
69... Kxe6 {[%clk 0:00:04.8]} 1/2-1/2

[Event "*** Titled Tuesday Blitz"]
[Site "Chess.com"]
[Date "2020.11.03"]
[Round "6"]
[White "MIJuanReyesRosa"]
[Black "Walter_White_Poland"]
[Result "0-1"]
[WhiteElo "2119"]
[BlackElo "2354"]
[TimeControl "180+1"]
[EndTime "11:11:44 PST"]
[Termination "Walter_White_Poland won by checkmate"]

1. d4 {[%clk 0:02:57.6]} 1... Nf6 {[%clk 0:02:59.5]} 2. Nf3 {[%clk 0:02:57]}
2... c5 {[%clk 0:02:58.8]} 3. c4 {[%clk 0:02:56.4]} 3... cxd4 {[%clk 0:02:58.5]}
4. Nxd4 {[%clk 0:02:56.4]} 4... Nc6 {[%clk 0:02:59]} 5. Nc3 {[%clk 0:02:55.6]}
5... e6 {[%clk 0:02:59]} 6. e4 {[%clk 0:02:54.7]} 6... Bb4 {[%clk 0:02:58.4]} 7.
Nxc6 {[%clk 0:02:35.7]} 7... dxc6 {[%clk 0:02:50.4]} 8. Qxd8+ {[%clk 0:02:29]}
8... Kxd8 {[%clk 0:02:50.4]} 9. Bd2 {[%clk 0:02:23.2]} 9... e5 {[%clk
0:02:48.5]} 10. O-O-O {[%clk 0:02:21.5]} 10... Ke7 {[%clk 0:02:13.9]} 11. Nd5+
{[%clk 0:02:00.7]} 11... Nxd5 {[%clk 0:02:13.5]} 12. exd5 {[%clk 0:01:53.7]}
12... Bxd2+ {[%clk 0:02:10.2]} 13. Rxd2 {[%clk 0:01:53]} 13... cxd5 {[%clk
0:02:08.9]} 14. Rxd5 {[%clk 0:01:44.5]} 14... f6 {[%clk 0:02:07.1]} 15. Be2
{[%clk 0:01:38.8]} 15... Be6 {[%clk 0:02:06.3]} 16. Rd2 {[%clk 0:01:33.5]} 16...
Rac8 {[%clk 0:02:05.7]} 17. Rc2 {[%clk 0:01:11]} 17... a5 {[%clk 0:01:59.1]} 18.
b3 {[%clk 0:01:06.1]} 18... Bf5 {[%clk 0:01:33.9]} 19. Rc3 {[%clk 0:01:01.5]}
19... Rhd8 {[%clk 0:01:32.8]} 20. Rd1 {[%clk 0:01:00.3]} 20... Rxd1+ {[%clk
0:01:25.5]} 21. Kxd1 {[%clk 0:00:53.8]} 21... Be4 {[%clk 0:01:19]} 22. Bf3
{[%clk 0:00:44.8]} 22... Bxf3+ {[%clk 0:01:18]} 23. Rxf3 {[%clk 0:00:44.4]}
23... Ke6 {[%clk 0:01:12.5]} 24. Rd3 {[%clk 0:00:42.4]} 24... f5 {[%clk
0:01:09.6]} 25. Rd5 {[%clk 0:00:38.1]} 25... b6 {[%clk 0:01:08.2]} 26. Kd2
{[%clk 0:00:32.6]} 26... g5 {[%clk 0:01:04.6]} 27. f3 {[%clk 0:00:26.5]} 27...
h5 {[%clk 0:01:03.9]} 28. g3 {[%clk 0:00:25.7]} 28... g4 {[%clk 0:00:58.5]} 29.
f4 {[%clk 0:00:21.5]} 29... exf4 {[%clk 0:00:58.3]} 30. gxf4 {[%clk 0:00:21.2]}
30... h4 {[%clk 0:00:56]} 31. Re5+ {[%clk 0:00:19.7]} 31... Kf6 {[%clk
0:00:55.7]} 32. Rb5 {[%clk 0:00:19.1]} 32... Rc6 {[%clk 0:00:51.2]} 33. Ke3
{[%clk 0:00:18.9]} 33... h3 {[%clk 0:00:41.2]} 34. Kf2 {[%clk 0:00:17.1]} 34...
Rd6 {[%clk 0:00:34.5]} 35. Kg3 {[%clk 0:00:14.7]} 35... Kg6 {[%clk 0:00:26.5]}
36. c5 {[%clk 0:00:14.1]} 36... bxc5 {[%clk 0:00:25.5]} 37. Rxc5 {[%clk
0:00:13.3]} 37... a4 {[%clk 0:00:23.2]} 38. bxa4 {[%clk 0:00:11.6]} 38... Rd3+
{[%clk 0:00:16.9]} 39. Kf2 {[%clk 0:00:09.4]} 39... Rf3+ {[%clk 0:00:15.9]} 40.
Ke2 {[%clk 0:00:08]} 40... Rxf4 {[%clk 0:00:16.1]} 41. a5 {[%clk 0:00:06.7]}
41... Ra4 {[%clk 0:00:16]} 42. Ke3 {[%clk 0:00:05.6]} 42... Kg5 {[%clk
0:00:15.1]} 43. Rc2 {[%clk 0:00:03.5]} 43... Rxa5 {[%clk 0:00:14]} 44. Rf2
{[%clk 0:00:03.2]} 44... Ra3+ {[%clk 0:00:12.8]} 45. Kd4 {[%clk 0:00:03]} 45...
f4 {[%clk 0:00:12.3]} 46. Ke5 {[%clk 0:00:02.9]} 46... Ra5+ {[%clk 0:00:11.2]}
47. Ke4 {[%clk 0:00:02.8]} 47... g3 {[%clk 0:00:09.1]} 48. hxg3 {[%clk
0:00:02.8]} 48... fxg3 {[%clk 0:00:09.4]} 49. Rf8 {[%clk 0:00:02.7]} 49... h2
{[%clk 0:00:09.1]} 50. Rg8+ {[%clk 0:00:02.8]} 50... Kh4 {[%clk 0:00:09.3]} 51.
Rh8+ {[%clk 0:00:03.2]} 51... Rh5 {[%clk 0:00:09.1]} 52. Rg8 {[%clk 0:00:03.4]}
52... h1=Q+ {[%clk 0:00:09.1]} 53. Kf4 {[%clk 0:00:03.4]} 53... Qf1+ {[%clk
0:00:08.4]} 54. Ke3 {[%clk 0:00:03.2]} 54... Qe1+ {[%clk 0:00:08.4]} 55. Kd3
{[%clk 0:00:03.1]} 55... Qf2 {[%clk 0:00:07.8]} 56. Kc4 {[%clk 0:00:04]} 56...
g2 {[%clk 0:00:08]} 57. Re8 {[%clk 0:00:03.8]} 57... g1=Q {[%clk 0:00:07.4]} 58.
Re4+ {[%clk 0:00:04.1]} 58... Kh3 {[%clk 0:00:07.5]} 59. Rh4+ {[%clk 0:00:04.1]}
59... Kxh4 {[%clk 0:00:07.1]} 60. a4 {[%clk 0:00:05]} 60... Qd4+ {[%clk
0:00:07.5]} 61. Kb3 {[%clk 0:00:04.9]} 61... Qb1+ {[%clk 0:00:07.8]} 62. Ka3
{[%clk 0:00:04.9]} 62... Qdb4# {[%clk 0:00:08.7]} 0-1